[Event "POL-chT 2 Liga 2019"]
[Site "Poronin"]
[Date "2019.09.08"]
[Round "2.42"]
[White "Szelag, Zuzanna"]
[Black "Pastuszko, Kinga"]
[Result "1-0"]
[ECO "C65"]
[WhiteElo "1824"]
[BlackElo "1998"]
[Annotator "NA"]
[PlyCount "55"]
[EventDate "2019.09.07"]
[EventType "team-tourn"]
[EventCountry "POL"]
[SourceTitle "playchess.com"]
[Source "ChessBase"]
[SourceQuality "1"]
[TimeControl "40/5400+30:1800+30"]

1. e4 {[%emt 0:00:00]} e5 {[%emt 0:00:00]} 2. Nf3 {[%emt 0:00:00]} Nc6 {[%emt 0:00:00]} 3. Bb5 {[%emt 0:00:00]} Nf6 {[%emt 0:00:01]} 4. d3 {[%emt 0:00:06]} Bc5 {[%emt 0:01:54]} 5. O-O {[%emt 0:01:14]} d6 {[%emt 0:01:58]} 6. c3 {[%emt 0:01:18]} O-O {[%emt 0:02:12]} 7. Qe2 {[%emt 0:03:56]} h6 {[%emt 0:02:07]} 8. Rd1 {[%emt 0:02:58]} Re8 {[%emt 0:02:02]} 9. Nbd2 {[%emt 0:03:09]} a6 {[%emt 0:00:48]} 10. Ba4 {[%emt 0:01:11]} b5 {[%emt 0:00:48]} 11. Bb3 {[%emt 0:01:32]} a5 {[%emt 0:03:13]} 12. a4 {[%emt 0:04:12]} Ba6 {[%emt 0:06:06]} 13. axb5 {[%emt 0:09:04]} Bxb5 {[%emt 0:00:09]} 14. Bc4 {[%emt 0:00:16]} Bxc4 {[%emt 0:06:57]} 15. Nxc4 {[%emt 0:01:41]} Qb8 {[%emt 0:00:53]} 16. Nh4 {[%emt 0:04:53]} a4 {[%emt 0:12:39]} 17. Qf3 {[%emt 0:05:27]} Re6 {[%emt 0:14:40]} 18. Nf5 {[%emt 0:02:14]} Qb5 {[%emt 0:15:59]} 19. Qg3 {[%emt 0:04:18]} Ne8 {[%emt 0:12:18]} 20. Nxh6+ {[%emt 0:04:30]} Kf8 {[%emt 0:00:18]} 21. Nf5 {[%emt 0:00:29]} Rg6 {[%emt 0:01:21]} 22. Qh4 {[%emt 0:02:09]} Kg8 {[%emt 0:00:15]} 23. b4 {[%emt 0:04:12]} Ba7 {[%emt 0:02:55]} 24. Na3 {[%emt 0:00:31]} Qb6 {[%emt 0:05:19]} 25. b5 {[%emt 0:02:02]} Nf6 {[%emt 0:05:42]} 26. Be3 {[%emt 0:01:44]} Qa5 {[%emt 0:01:29]} 27. bxc6 {[%emt 0:00:28]} Rg4 {[%emt 0:00:32]} 28. Ne7+ {[%emt 0:01:04]} 1-0

[Event "POL-chT 2 Liga 2019"]
[Site "Poronin"]
[Date "2019.09.08"]
[Round "2.44"]
[White "Czerw, Dawid"]
[Black "Kasperek, Ryszard"]
[Result "1/2-1/2"]
[ECO "E44"]
[WhiteElo "2269"]
[BlackElo "2213"]
[Annotator "NA"]
[PlyCount "128"]
[EventDate "2019.09.07"]
[EventType "team-tourn"]
[EventCountry "POL"]
[SourceTitle "playchess.com"]
[Source "ChessBase"]
[SourceQuality "1"]
[TimeControl "40/5400+30:1800+30"]

1. d4 {[%emt 0:00:00]} Nf6 {[%emt 0:00:00]} 2. c4 {[%emt 0:00:00]} e6 {[%emt 0:00:00]} 3. Nc3 {[%emt 0:00:00]} Bb4 {[%emt 0:00:42]} 4. e3 {[%emt 0:00:00]} b6 {[%emt 0:01:43]} 5. Nge2 {[%emt 0:00:04]} c5 {[%emt 0:00:32]} 6. a3 {[%emt 0:00:04]} Ba5 {[%emt 0:00:05]} 7. Rb1 {[%emt 0:00:04]} Na6 {[%emt 0:00:55]} 8. Ng3 {[%emt 0:00:21]} O-O {[%emt 0:24:44]} 9. Bd3 {[%emt 0:00:29]} d5 {[%emt 0:09:47]} 10. O-O {[%emt 0:04:08]} Bxc3 {[%emt 0:06:27]} 11. bxc3 {[%emt 0:00:08]} Bb7 {[%emt 0:03:06]} 12. cxd5 {[%emt 0:06:52]} exd5 {[%emt 0:02:27]} 13. Qe2 {[%emt 0:04:38]} c4 {[%emt 0:10:30]} 14. Bc2 {[%emt 0:00:06]} Re8 {[%emt 0:08:23]} 15. f3 {[%emt 0:03:07]} h5 {[%emt 0:02:48]} 16. Qf2 {[%emt 0:01:36]} Qd7 {[%emt 0:00:35]} 17. Nf5 {[%emt 0:12:26]} g6 {[%emt 0:04:16]} 18. Qg3 {[%emt 0:06:56]} Qc7 {[%emt 0:07:24]} 19. Nd6 {[%emt 0:03:18]} Re6 {[%emt 0:00:10]} 20. Nxb7 {[%emt 0:00:54]} Qxg3 {[%emt 0:03:31]} 21. hxg3 {[%emt 0:00:06]} Rb8 {[%emt 0:00:01]} 22. Nd6 {[%emt 0:15:42]} Rxd6 {[%emt 0:00:41]} 23. e4 {[%emt 0:00:01]} Re6 {[%emt 0:03:34]} 24. Bf4 {[%emt 0:00:20]} Rd8 {[%emt 0:03:49]} 25. Bg5 {[%emt 0:01:04]} Rc8 {[%emt 0:00:23]} 26. Ba4 {[%emt 0:17:59]} Nb8 {[%emt 0:03:13]} 27. Rbe1 {[%emt 0:03:40]} a6 28. Bxf6 {[%emt 0:04:24]} Rxf6 {[%emt 0:02:18]} 29. exd5 {[%emt 0:00:05]} Rd6 {[%emt 0:01:04]} 30. Re7 {[%emt 0:01:42]} b5 {[%emt 0:00:22]} 31. Bc2 {[%emt 0:00:28]} Nd7 {[%emt 0:00:52]} 32. a4 {[%emt 0:01:09]} Nf6 {[%emt 0:00:48]} 33. Be4 {[%emt 0:01:33]} b4 {[%emt 0:00:45]} 34. cxb4 {[%emt 0:02:27]} Nxd5 {[%emt 0:00:01]} 35. Bxd5 {[%emt 0:02:14]} Rxd5 {[%emt 0:00:01]} 36. Re3 {[%emt 0:01:19]} Rxd4 {[%emt 0:00:45]} 37. Rc3 {[%emt 0:02:00]} Re8 {[%emt 0:00:26]} 38. Rc2 {[%emt 0:03:10]} Re3 {[%emt 0:00:26]} 39. Rfc1 {[%emt 0:01:04]} c3 {[%emt 0:00:13]} 40. Kf2 {[%emt 0:00:00]} Red3 {[%emt 0:00:00]} 41. Rxc3 {[%emt 0:03:01]} Rxc3 {[%emt 0:01:32]} 42. Rxc3 {[%emt 0:00:09]} Rxb4 {[%emt 0:00:03]} 43. Ra3 {[%emt 0:01:35]} Rb2+ {[%emt 0:02:51]} 44. Kf1 {[%emt 0:00:58]} a5 {[%emt 0:03:01]} 45. Rc3 {[%emt 0:00:25]} Rb4 {[%emt 0:00:08]} 46. Ra3 {[%emt 0:00:02]} Rb1+ {[%emt 0:00:41]} 47. Kf2 {[%emt 0:00:06]} Rb2+ {[%emt 0:00:03]} 48. Kg1 {[%emt 0:00:51]} Kg7 {[%emt 0:02:28]} 49. Rc3 Rb4 {[%emt 0:01:40]} 50. Ra3 {[%emt 0:07:36]} Rb1+ {[%emt 0:00:35]} 51. Kh2 {[%emt 0:01:54]} Kf6 {[%emt 0:01:30]} 52. Ra2 {[%emt 0:01:15]} Rc1 {[%emt 0:01:59]} 53. Rb2 {[%emt 0:01:28]} Rc4 {[%emt 0:00:16]} 54. Ra2 {[%emt 0:00:01]} Ke5 55. Kg1 Kd5 56. Rd2+ Rd4 57. Rb2 Rb4 58. Rc2 Rd4 59. Re2 {Ke5 Ra2} Rc4 60. Kf2 {Kd5 Re2} Kd6 61. Rd2+ Kc6 62. Re2 Rxa4 63. Re7 Rb4 64. Rxf7 Rb6 1/2-1/2

[Event "POL-chT 2 Liga 2019"]
[Site "Poronin"]
[Date "2019.09.08"]
[Round "2.45"]
[White "Cajbel, Maciej"]
[Black "Pazdziora, Michal"]
[Result "0-1"]
[ECO "A12"]
[WhiteElo "2199"]
[BlackElo "2176"]
[Annotator "NA"]
[PlyCount "82"]
[EventDate "2019.09.07"]
[EventType "team-tourn"]
[EventCountry "POL"]
[SourceTitle "playchess.com"]
[Source "ChessBase"]
[SourceQuality "1"]
[TimeControl "40/5400+30:1800+30"]

1. c4 {[%emt 0:00:00]} Nf6 {[%emt 0:00:00]} 2. Nf3 {[%emt 0:00:02]} c6 {[%emt 0:01:32]} 3. g3 {[%emt 0:02:29]} d5 {[%emt 0:01:19]} 4. b3 {[%emt 0:00:08]} Bf5 {[%emt 0:00:49]} 5. Bg2 {[%emt 0:00:12]} e6 {[%emt 0:00:30]} 6. O-O {[%emt 0:00:35]} Be7 {[%emt 0:00:41]} 7. Bb2 {[%emt 0:00:44]} O-O {[%emt 0:00:50]} 8. d3 {[%emt 0:00:10]} h6 {[%emt 0:02:40]} 9. Nbd2 {[%emt 0:00:06]} Nbd7 {[%emt 0:01:55]} 10. a3 {[%emt 0:01:05]} a5 {[%emt 0:01:33]} 11. Rc1 {[%emt 0:00:30]} Qb6 {[%emt 0:04:29]} 12. e4 {[%emt 0:28:43]} Bh7 {[%emt 0:06:47]} 13. Qe2 {[%emt 0:00:10]} Nc5 {[%emt 0:05:54]} 14. Bd4 {[%emt 0:02:35]} dxe4 {[%emt 0:09:33]} 15. dxe4 {[%emt 0:03:15]} Qc7 {[%emt 0:05:52]} 16. e5 {[%emt 0:18:11]} Nfd7 {[%emt 0:03:19]} 17. Ne1 {[%emt 0:05:24]} Rfd8 {[%emt 0:05:58]} 18. b4 {[%emt 0:02:06]} Na6 {[%emt 0:07:13]} 19. c5 {[%emt 0:11:57]} axb4 {[%emt 0:04:36]} 20. axb4 {[%emt 0:00:03]} Nxb4 {[%emt 0:00:47]} 21. Be4 {[%emt 0:03:30]} Bxe4 {[%emt 0:05:56]} 22. Nxe4 {[%emt 0:00:32]} Nxe5 {[%emt 0:09:41]} 23. Nd6 {[%emt 0:01:06]} Ng6 {[%emt 0:01:03]} 24. Bxg7 {[%emt 0:05:02]} Kxg7 {[%emt 0:02:37]} 25. Qb2+ {[%emt 0:00:07]} f6 {[%emt 0:00:53]} 26. Qxb4 {[%emt 0:00:23]} Bxd6 {[%emt 0:00:16]} 27. cxd6 {[%emt 0:00:06]} Rxd6 {[%emt 0:00:09]} 28. Nf3 {[%emt 0:02:50]} Rad8 {[%emt 0:01:17]} 29. Rfe1 {[%emt 0:02:09]} Rd3 {[%emt 0:02:13]} 30. Kg2 {[%emt 0:02:23]} e5 {[%emt 0:00:50]} 31. Rc4 {[%emt 0:02:14]} Qe7 {[%emt 0:02:52]} 32. Qb1 {[%emt 0:02:54]} Qd7 {[%emt 0:00:54]} 33. Qb4 {[%emt 0:03:09]} Kh7 {[%emt 0:05:25]} 34. h4 {[%emt 0:01:31]} h5 {[%emt 0:01:12]} 35. Rc5 {[%emt 0:00:24]} Nf4+ {[%emt 0:02:12]} 36. Kg1 {[%emt 0:00:39]} Qh3 {[%emt 0:03:11]} 37. Qe4+ {[%emt 0:00:12]} Kh6 {[%emt 0:00:43]} 38. Nxe5 {[%emt 0:00:50]} fxe5 {[%emt 0:00:24]} 39. Rxe5 {[%emt 0:00:05]} R8d4 {[%emt 0:00:42]} 40. Rxh5+ {[%emt 0:00:00]} Nxh5 {[%emt 0:00:00]} 41. Qe7 {[%emt 0:03:19]} Rxg3+ {[%emt 0:01:39]} 0-1

[Event "POL-chT 2 Liga 2019"]
[Site "Poronin"]
[Date "2019.09.08"]
[Round "2.46"]
[White "Niedbala, Bartlomiej"]
[Black "Puczylowski, Marcin"]
[Result "0-1"]
[ECO "E11"]
[WhiteElo "2145"]
[BlackElo "2115"]
[Annotator "NA"]
[PlyCount "94"]
[EventDate "2019.09.07"]
[EventType "team-tourn"]
[EventCountry "POL"]
[SourceTitle "playchess.com"]
[Source "ChessBase"]
[SourceQuality "1"]
[TimeControl "40/5400+30:1800+30"]

1. d4 {[%emt 0:00:00]} Nf6 {[%emt 0:00:00]} 2. Nf3 {[%emt 0:00:00]} e6 {[%emt 0:00:00]} 3. c4 {[%emt 0:00:47]} Bb4+ {[%emt 0:00:00]} 4. Nbd2 {[%emt 0:01:54]} b6 {[%emt 0:00:00]} 5. a3 {[%emt 0:05:45]} Bxd2+ {[%emt 0:05:36]} 6. Qxd2 {[%emt 0:05:49]} Bb7 {[%emt 0:05:17]} 7. g3 {[%emt 0:04:36]} O-O {[%emt 0:03:18]} 8. Bg2 {[%emt 0:00:05]} d6 {[%emt 0:02:23]} 9. O-O {[%emt 0:00:23]} Nbd7 {[%emt 0:00:44]} 10. b4 {[%emt 0:00:49]} Qe7 {[%emt 0:12:18]} 11. Bb2 {[%emt 0:05:06]} Be4 {[%emt 0:13:36]} 12. Rfd1 {[%emt 0:08:25]} c6 {[%emt 0:02:01]} 13. a4 {[%emt 0:03:00]} Rac8 {[%emt 0:08:41]} 14. Rac1 {[%emt 0:07:26]} Rc7 {[%emt 0:05:38]} 15. Bf1 {[%emt 0:02:18]} Bg6 {[%emt 0:11:31]} 16. Nh4 {[%emt 0:02:33]} d5 {[%emt 0:05:09]} 17. Nxg6 {[%emt 0:01:05]} hxg6 {[%emt 0:00:09]} 18. Ba3 {[%emt 0:09:10]} Rfc8 {[%emt 0:02:10]} 19. Qa2 {[%emt 0:04:09]} dxc4 {[%emt 0:06:08]} 20. Qxc4 {[%emt 0:00:29]} Ne4 {[%emt 0:01:20]} 21. Qc2 {[%emt 0:02:39]} f5 {[%emt 0:03:17]} 22. e3 {[%emt 0:01:50]} a5 {[%emt 0:04:14]} 23. Qb3 {[%emt 0:01:54]} axb4 {[%emt 0:01:22]} 24. Bxb4 {[%emt 0:00:23]} Qe8 {[%emt 0:01:12]} 25. Bc4 {[%emt 0:12:37]} Kf7 {[%emt 0:00:29]} 26. f3 {[%emt 0:00:43]} Ng5 {[%emt 0:02:31]} 27. h4 {[%emt 0:00:56]} Nxf3+ {[%emt 0:02:20]} 28. Kg2 {[%emt 0:00:13]} c5 {[%emt 0:00:10]} 29. Ba3 {[%emt 0:04:45]} cxd4 {[%emt 0:02:03]} 30. exd4 {[%emt 0:00:02]} Rxc4 {[%emt 0:00:46]} 31. Rxc4 {[%emt 0:00:01]} Rxc4 {[%emt 0:00:01]} 32. Qxc4 {[%emt 0:00:01]} Qa8 {[%emt 0:00:09]} 33. d5 {[%emt 0:04:09]} Nfe5 {[%emt 0:00:06]} 34. Qb3 {[%emt 0:09:44]} Nf6 {[%emt 0:00:39]} 35. Bb2 {[%emt 0:00:43]} Neg4 {[%emt 0:01:01]} 36. Qc3 {[%emt 0:02:24]} exd5 {[%emt 0:00:58]} 37. Rd4 {[%emt 0:01:03]} Qe8 38. Qd2 {[%emt 0:00:30]} Ne3+ {[%emt 0:00:58]} 39. Kg1 {[%emt 0:00:29]} Nc4 {[%emt 0:00:18]} 40. Qc2 {[%emt 0:00:00]} Qe1+ {[%emt 0:00:00]} 41. Kh2 {[%emt 0:00:49]} Ne4 {[%emt 0:06:38]} 42. Qg2 {[%emt 0:09:09]} Nxb2 {[%emt 0:05:15]} 43. Rxe4 {[%emt 0:00:32]} fxe4 {[%emt 0:01:11]} 44. Qxb2 {[%emt 0:00:00]} e3 {[%emt 0:00:24]} 45. Qe5 {[%emt 0:00:05]} Qf2+ {[%emt 0:00:25]} 46. Kh1 {[%emt 0:00:00]} Qf3+ {[%emt 0:00:36]} 47. Kh2 {[%emt 0:00:09]} e2 {[%emt 0:00:16]} 0-1

[Event "POL-chT 2 Liga 2019"]
[Site "Poronin"]
[Date "2019.09.08"]
[Round "2.47"]
[White "Zurkowski, Andrzej"]
[Black "Galuszka, Tomasz"]
[Result "0-1"]
[ECO "A06"]
[WhiteElo "2029"]
[BlackElo "2222"]
[Annotator "NA"]
[PlyCount "98"]
[EventDate "2019.09.07"]
[EventType "team-tourn"]
[EventCountry "POL"]
[SourceTitle "playchess.com"]
[Source "ChessBase"]
[SourceQuality "1"]
[TimeControl "40/5400+30:1800+30"]

1. Nf3 {[%emt 0:01:46]} d5 {[%emt 0:00:00]} 2. g3 {[%emt 0:00:26]} Nf6 {[%emt 0:00:00]} 3. Bg2 {[%emt 0:00:20]} c6 {[%emt 0:00:00]} 4. d4 {[%emt 0:00:28]} Bf5 {[%emt 0:01:04]} 5. O-O {[%emt 0:00:58]} e6 {[%emt 0:01:50]} 6. c4 {[%emt 0:00:24]} Nbd7 {[%emt 0:01:02]} 7. Nc3 {[%emt 0:00:42]} h6 {[%emt 0:02:06]} 8. Nd2 {[%emt 0:02:29]} Be7 {[%emt 0:00:49]} 9. e4 {[%emt 0:01:54]} dxe4 {[%emt 0:00:23]} 10. Ndxe4 {[%emt 0:00:06]} O-O {[%emt 0:01:39]} 11. h3 {[%emt 0:02:39]} Nxe4 {[%emt 0:02:53]} 12. Nxe4 {[%emt 0:10:29]} Nf6 {[%emt 0:00:44]} 13. Nc3 {[%emt 0:02:03]} Rc8 {[%emt 0:04:34]} 14. Be3 {[%emt 0:01:15]} Qd7 {[%emt 0:07:50]} 15. Qb3 {[%emt 0:07:14]} b5 {[%emt 0:16:18]} 16. cxb5 {[%emt 0:11:00]} cxb5 {[%emt 0:00:09]} 17. Qxb5 {[%emt 0:01:33]} Qxb5 {[%emt 0:00:29]} 18. Nxb5 {[%emt 0:00:04]} Rc2 {[%emt 0:03:55]} 19. Nxa7 {[%emt 0:04:00]} Nd5 {[%emt 0:03:34]} 20. Rfc1 {[%emt 0:04:59]} Rxb2 {[%emt 0:00:33]} 21. a4 {[%emt 0:02:38]} Bb4 {[%emt 0:05:20]} 22. g4 {[%emt 0:08:05]} Bd3 {[%emt 0:04:30]} 23. Nc6 {[%emt 0:03:29]} f5 {[%emt 0:13:04]} 24. gxf5 {[%emt 0:07:06]} Rxf5 {[%emt 0:12:23]} 25. Nxb4 {[%emt 0:02:36]} Rxb4 {[%emt 0:02:34]} 26. Ra3 {[%emt 0:01:51]} Nxe3 {[%emt 0:01:55]} 27. fxe3 {[%emt 0:00:26]} Rb2 {[%emt 0:01:35]} 28. Bc6 {[%emt 0:09:58]} Ba6 {[%emt 0:05:04]} 29. Rac3 {[%emt 0:03:18]} Rg5+ {[%emt 0:01:08]} 30. Kh1 {[%emt 0:00:26]} Rg3 {[%emt 0:00:16]} 31. e4 {[%emt 0:01:49]} Bd3 {[%emt 0:00:41]} 32. e5 {[%emt 0:02:10]} Rxh3+ {[%emt 0:00:16]} 33. Kg1 {[%emt 0:00:01]} Rg3+ {[%emt 0:02:31]} 34. Kh1 {[%emt 0:00:06]} h5 {[%emt 0:00:47]} 35. a5 {[%emt 0:03:24]} h4 {[%emt 0:00:20]} 36. a6 {[%emt 0:01:28]} Rh3+ {[%emt 0:00:04]} 37. Kg1 {[%emt 0:00:05]} Rg3+ {[%emt 0:00:03]} 38. Kh1 {[%emt 0:00:06]} Ra2 {[%emt 0:04:32]} 39. Bb7 {[%emt 0:01:46]} Rh3+ {[%emt 0:00:10]} 40. Kg1 {[%emt 0:00:00]} Rg3+ {[%emt 0:00:00]} 41. Kh1 {[%emt 0:00:39]} Bxa6 {[%emt 0:09:52]} 42. Bxa6 {[%emt 0:00:51]} Rxc3 {[%emt 0:00:44]} 43. Rxc3 {[%emt 0:00:01]} Rxa6 {[%emt 0:00:01]} 44. Kg2 {[%emt 0:00:49]} Ra4 {[%emt 0:03:30]} 45. Rd3 {[%emt 0:00:02]} Kf7 {[%emt 0:01:03]} 46. Kh3 {[%emt 0:00:41]} g5 {[%emt 0:00:08]} 47. Rf3+ {[%emt 0:07:49]} Kg6 {[%emt 0:00:35]} 48. Rf6+ {[%emt 0:00:44]} Kh5 {[%emt 0:00:02]} 49. Rxe6 {[%emt 0:01:13]} Ra2 {[%emt 0:00:14]} 0-1

[Event "POL-chT 2 Liga 2019"]
[Site "Poronin"]
[Date "2019.09.08"]
[Round "2.48"]
[White "Adamczyk, Zuzanna"]
[Black "Kasperek, Joanna"]
[Result "1-0"]
[ECO "B09"]
[WhiteElo "1938"]
[BlackElo "2045"]
[Annotator "NA"]
[PlyCount "73"]
[EventDate "2019.09.07"]
[EventType "team-tourn"]
[EventCountry "POL"]
[SourceTitle "playchess.com"]
[Source "ChessBase"]
[SourceQuality "1"]
[TimeControl "40/5400+30:1800+30"]

1. e4 {[%emt 0:00:00]} d6 {[%emt 0:00:00]} 2. d4 {[%emt 0:00:00]} Nf6 {[%emt 0:00:01]} 3. Nc3 {[%emt 0:00:20]} g6 {[%emt 0:00:38]} 4. f4 {[%emt 0:00:43]} Bg7 {[%emt 0:00:32]} 5. Nf3 {[%emt 0:00:36]} O-O {[%emt 0:00:56]} 6. Bd3 {[%emt 0:06:28]} Nc6 {[%emt 0:03:34]} 7. O-O {[%emt 0:01:48]} e5 {[%emt 0:03:31]} 8. d5 {[%emt 0:05:58]} Nd4 {[%emt 0:07:03]} 9. Nxd4 {[%emt 0:12:06]} exd4 {[%emt 0:00:07]} 10. Ne2 {[%emt 0:02:07]} Re8 {[%emt 0:09:05]} 11. Ng3 {[%emt 0:02:13]} Bg4 {[%emt 0:20:48]} 12. Qd2 {[%emt 0:01:33]} c6 {[%emt 0:10:30]} 13. dxc6 {[%emt 0:05:32]} bxc6 {[%emt 0:00:05]} 14. Qf2 {[%emt 0:03:42]} Qc7 {[%emt 0:08:01]} 15. f5 {[%emt 0:04:51]} c5 {[%emt 0:07:57]} 16. b3 {[%emt 0:08:26]} d5 {[%emt 0:05:22]} 17. exd5 {[%emt 0:09:05]} Nxd5 {[%emt 0:02:04]} 18. h3 {[%emt 0:11:48]} Be5 {[%emt 0:03:02]} 19. hxg4 {[%emt 0:02:21]} Bxg3 {[%emt 0:00:05]} 20. Qf3 {[%emt 0:00:08]} Ne3 {[%emt 0:02:02]} 21. fxg6 {[%emt 0:08:18]} hxg6 {[%emt 0:01:28]} 22. Ba3 {[%emt 0:04:31]} Nxf1 {[%emt 0:05:27]} 23. Rxf1 {[%emt 0:00:31]} Bh2+ {[%emt 0:00:32]} 24. Kh1 {[%emt 0:00:54]} Bd6 {[%emt 0:00:13]} 25. Bc4 {[%emt 0:00:55]} Rf8 {[%emt 0:01:41]} 26. Qf6 {[%emt 0:00:30]} Qe7 {[%emt 0:03:23]} 27. Qxg6+ {[%emt 0:00:45]} Kh8 {[%emt 0:00:03]} 28. Qh6+ {[%emt 0:00:37]} Kg8 {[%emt 0:00:03]} 29. Bd3 {[%emt 0:01:44]} f6 {[%emt 0:01:57]} 30. Bc4+ {[%emt 0:00:15]} Rf7 {[%emt 0:00:08]} 31. g5 {[%emt 0:04:55]} Qe3 {[%emt 0:04:08]} 32. Qg6+ {[%emt 0:01:05]} Kh8 {[%emt 0:00:05]} 33. Bxf7 {[%emt 0:00:17]} Qxg5 {[%emt 0:00:44]} 34. Qxf6+ {[%emt 0:00:36]} Qxf6 {[%emt 0:00:05]} 35. Rxf6 {[%emt 0:00:04]} Bc7 {[%emt 0:00:50]} 36. Bxc5 {[%emt 0:00:46]} Kg7 {[%emt 0:00:06]} 37. Rf3 {[%emt 0:00:22]} 1-0

[Event "POL-chT 2 Liga 2019"]
[Site "Poronin"]
[Date "2019.09.08"]
[Round "2.49"]
[White "Helis, Tadeusz"]
[Black "Miroslaw, Michal"]
[Result "1/2-1/2"]
[ECO "A09"]
[WhiteElo "2166"]
[BlackElo "2284"]
[Annotator "NA"]
[PlyCount "37"]
[EventDate "2019.09.07"]
[EventType "team-tourn"]
[EventCountry "POL"]
[SourceTitle "playchess.com"]
[Source "ChessBase"]
[SourceQuality "1"]
[TimeControl "40/5400+30:1800+30"]

1. Nf3 {[%emt 0:00:00]} d5 {[%emt 0:00:00]} 2. c4 {[%emt 0:00:00]} dxc4 {[%emt 0:00:00]} 3. g3 {[%emt 0:00:10]} Nc6 {[%emt 0:03:01]} 4. Bg2 {[%emt 0:00:55]} e5 {[%emt 0:02:26]} 5. Qa4 {[%emt 0:03:24]} Bd7 {[%emt 0:05:09]} 6. Qxc4 {[%emt 0:00:43]} Bd6 {[%emt 0:00:16]} 7. Nc3 {[%emt 0:09:08]} Nf6 {[%emt 0:03:12]} 8. d3 {[%emt 0:05:19]} O-O {[%emt 0:07:59]} 9. Bg5 {[%emt 0:07:37]} h6 {[%emt 0:17:24]} 10. Bxf6 {[%emt 0:00:30]} Qxf6 {[%emt 0:00:02]} 11. Ne4 {[%emt 0:00:31]} Qe6 {[%emt 0:03:24]} 12. Nxd6 {[%emt 0:01:46]} cxd6 {[%emt 0:02:09]} 13. O-O {[%emt 0:01:17]} d5 {[%emt 0:01:44]} 14. Qb3 {[%emt 0:00:27]} e4 {[%emt 0:05:17]} 15. dxe4 {[%emt 0:00:03]} dxe4 {[%emt 0:00:16]} 16. Nd2 {[%emt 0:00:47]} Nd4 {[%emt 0:04:17]} 17. Qxe6 {[%emt 0:00:14]} Nxe2+ {[%emt 0:00:20]} 18. Kh1 {[%emt 0:00:04]} Bxe6 {[%emt 0:00:05]} 19. Nxe4 {[%emt 0:00:18]} 1/2-1/2

[Event "POL-chT 2 Liga 2019"]
[Site "Poronin"]
[Date "2019.09.08"]
[Round "2.51"]
[White "Walkusz, Witoslaw"]
[Black "Maka, Marcin"]
[Result "1/2-1/2"]
[ECO "B30"]
[WhiteElo "2061"]
[BlackElo "2108"]
[Annotator "NA"]
[PlyCount "143"]
[EventDate "2019.09.07"]
[EventType "team-tourn"]
[EventCountry "POL"]
[SourceTitle "playchess.com"]
[Source "ChessBase"]
[SourceQuality "1"]
[TimeControl "40/5400+30:1800+30"]

1. e4 {[%emt 0:00:00]} c5 {[%emt 0:00:13]} 2. Nf3 {[%emt 0:00:00]} Nc6 {[%emt 0:00:13]} 3. Bb5 {[%emt 0:00:10]} e5 {[%emt 0:00:24]} 4. O-O {[%emt 0:02:07]} Nge7 {[%emt 0:00:08]} 5. c3 {[%emt 0:01:05]} a6 {[%emt 0:03:41]} 6. Bxc6 {[%emt 0:03:46]} Nxc6 {[%emt 0:00:13]} 7. d4 {[%emt 0:00:10]} Qc7 {[%emt 0:08:52]} 8. dxe5 {[%emt 0:10:29]} Nxe5 {[%emt 0:00:38]} 9. Nxe5 {[%emt 0:02:16]} Qxe5 {[%emt 0:00:05]} 10. Nd2 {[%emt 0:05:57]} Qe6 {[%emt 0:05:24]} 11. f4 {[%emt 0:16:45]} b5 {[%emt 0:23:28]} 12. a4 {[%emt 0:08:19]} Bb7 {[%emt 0:01:57]} 13. axb5 {[%emt 0:00:06]} axb5 {[%emt 0:00:05]} 14. Rxa8+ {[%emt 0:00:06]} Bxa8 {[%emt 0:00:04]} 15. Qe2 {[%emt 0:06:18]} Qc6 {[%emt 0:01:43]} 16. c4 {[%emt 0:06:17]} bxc4 {[%emt 0:03:38]} 17. f5 {[%emt 0:11:23]} d6 {[%emt 0:19:37]} 18. Nxc4 {[%emt 0:08:31]} Qxe4 {[%emt 0:05:53]} 19. Re1 {[%emt 0:00:32]} Qxe2 {[%emt 0:01:34]} 20. Rxe2+ {[%emt 0:01:00]} Kd8 {[%emt 0:01:52]} 21. Bf4 {[%emt 0:01:58]} Bd5 {[%emt 0:04:51]} 22. Nxd6 {[%emt 0:00:52]} Kd7 {[%emt 0:00:19]} 23. Rd2 {[%emt 0:00:44]} Kc6 {[%emt 0:00:19]} 24. Nc8 {[%emt 0:04:15]} Bb3 {[%emt 0:05:38]} 25. Rd8 {[%emt 0:04:08]} g6 {[%emt 0:02:08]} 26. Ne7+ {[%emt 0:03:33]} Kb5 {[%emt 0:00:52]} 27. Rb8+ {[%emt 0:00:47]} Kc4 {[%emt 0:00:09]} 28. Nc6 {[%emt 0:00:28]} Kd5 {[%emt 0:06:20]} 29. Rxb3 {[%emt 0:01:17]} Kxc6 {[%emt 0:00:07]} 30. Be5 {[%emt 0:00:16]} Rg8 {[%emt 0:00:22]} 31. Rb8 {[%emt 0:00:30]} gxf5 {[%emt 0:01:05]} 32. Bc3 {[%emt 0:01:04]} Kd7 {[%emt 0:00:38]} 33. Kf2 {[%emt 0:00:23]} Ke7 {[%emt 0:00:27]} 34. b4 {[%emt 0:00:17]} Rg4 {[%emt 0:00:30]} 35. bxc5 {[%emt 0:00:26]} Rc4 {[%emt 0:00:24]} 36. Bb2 {[%emt 0:01:02]} Rc2+ {[%emt 0:01:33]} 37. Kf3 {[%emt 0:00:01]} Bh6 {[%emt 0:00:16]} 38. Rb7+ {[%emt 0:00:41]} Ke8 {[%emt 0:00:05]} 39. Bd4 {[%emt 0:00:45]} Rc4 {[%emt 0:00:05]} 40. Rb6 {[%emt 0:00:00]} Rxd4 {[%emt 0:00:00]} 41. Rxh6 {[%emt 0:00:46]} Rc4 {[%emt 0:26:30]} 42. c6 {[%emt 0:01:41]} Ke7 {[%emt 0:00:22]} 43. g3 {[%emt 0:04:41]} Rg4 {[%emt 0:00:31]} 44. h4 {[%emt 0:10:56]} Rc4 {[%emt 0:04:33]} 45. h5 {[%emt 0:03:08]} Re4 {[%emt 0:01:48]} 46. Rxh7 {[%emt 0:01:52]} Re6 {[%emt 0:00:04]} 47. c7 {[%emt 0:02:17]} Rc6 {[%emt 0:00:01]} 48. Kf4 {[%emt 0:01:38]} Rxc7 {[%emt 0:00:06]} 49. Kxf5 {[%emt 0:00:57]} Rc5+ {[%emt 0:00:00]} 50. Kg4 {[%emt 0:01:25]} Kf6 {[%emt 0:00:07]} 51. Kh4 {[%emt 0:01:26]} Rc1 {[%emt 0:00:25]} 52. Rh6+ {[%emt 0:01:45]} Kg7 {[%emt 0:00:03]} 53. Ra6 {[%emt 0:00:12]} Rc5 {[%emt 0:00:57]} 54. g4 {[%emt 0:01:08]} Rc4 {[%emt 0:00:32]} 55. h6+ {[%emt 0:00:23]} Kh7 {[%emt 0:00:07]} 56. Rf6 {[%emt 0:01:10]} Rc7 {[%emt 0:00:09]} 57. Kh5 {[%emt 0:00:14]} Kg8 {[%emt 0:00:18]} 58. g5 {[%emt 0:00:26]} Ra7 {[%emt 0:00:08]} 59. Rf5 {[%emt 0:00:37]} Rb7 {[%emt 0:00:04]} 60. Rc5 {[%emt 0:00:39]} Kh7 {[%emt 0:00:23]} 61. Rc8 {[%emt 0:00:56]} Rb1 {[%emt 0:01:50]} 62. Rf8 {[%emt 0:00:36]} Rh1+ {[%emt 0:00:05]} 63. Kg4 {[%emt 0:00:04]} Rf1 {[%emt 0:00:06]} 64. Ra8 {[%emt 0:00:47]} Rf2 {[%emt 0:00:11]} 65. Ra7 {[%emt 0:01:25]} Kg6 {[%emt 0:00:24]} 66. Ra6+ {[%emt 0:00:16]} Kh7 {[%emt 0:00:56]} 67. Ra8 {[%emt 0:01:06]} Rf1 {[%emt 0:00:11]} 68. Rf8 {[%emt 0:00:44]} Rf2 {[%emt 0:00:05]} 69. Rc8 {[%emt 0:00:35]} Rf1 {[%emt 0:00:05]} 70. Rc5 {[%emt 0:00:53]} Kg6 {[%emt 0:00:06]} 71. Rb5 {[%emt 0:00:22]} f5+ {[%emt 0:04:30]} 72. gxf6 {[%emt 0:01:09]} 1/2-1/2